bitfinex-derivatives/quotes_BNBF0:USTF0_20250401
["timestamp","ask_amount","ask_price","bid_price","bid_amount"]
[1743483429952,0.3279011,609.94,608.17,1.55985541]
[1743483430150,0.30164274,609.93,608.17,1.55985541]
[1743483430356,0.28569552,609.78,608.17,1.55985541]
[1743483430551,0.3279011,609.94,608.17,1.55985541]
[1743483430755,0.30168716,609.93,608.17,1.55985541]
[1743483430951,0.28572015,609.77,608.17,1.55985541]
[1743483431154,0.3279011,609.94,608.17,1.55985541]
[1743483431356,0.30168715,609.93,608.17,1.55985541]
[1743483431655,0.28573423,609.76,608.17,1.55985541]
[1743483431858,0.30169859,609.75,608.17,1.55985541]
[1743483432160,0.30169859,609.74,608.17,1.55985541]
[1743483433058,0.30169859,609.91,608.17,1.55985541]
[1743483433255,0.28575534,609.73,608.17,1.55985541]
[1743483433458,0.30170783,609.72,608.17,1.55985541]
[1743483433758,0.30170783,609.71,608.17,1.55985541]
[1743483436258,0.58746669,609.7,608.17,1.55985541]
[1743483436462,0.30170783,609.69,608.17,1.55985541]
[1743483439665,0.28575886,609.7,608.17,1.55985541]
[1743483439666,0.30170839,609.68,608.17,1.55985541]
[1743483439867,0.30170839,609.67,608.17,1.55985541]
[1743483440163,0.30170839,609.66,608.17,1.55985541]
[1743483440365,0.30170839,609.69,608.17,1.55985541]
[1743483440566,0.30170839,609.68,608.17,1.55985541]
[1743483440767,0.30170839,609.69,608.17,1.55985541]
[1743483441063,0.30170839,609.68,608.17,1.55985541]
[1743483441267,0.30170839,609.69,608.17,1.55985541]
[1743483441467,0.30170839,609.68,608.17,1.55985541]
[1743483441662,0.30170839,609.69,608.17,1.55985541]
[1743483441863,0.30170839,609.68,608.17,1.55985541]
[1743483442065,0.30170839,609.67,608.17,1.55985541]
[1743483442264,0.30170839,609.66,608.17,1.55985541]
[1743483442465,0.30170839,609.65,608.17,1.55985541]
[1743483442665,0.30170839,609.64,608.17,1.55985541]
[1743483442865,0.30170839,609.63,608.17,1.55985541]
[1743483443063,0.30170839,609.66,608.17,1.55985541]
[1743483445071,0.30170839,609.89,608.17,1.55985541]
[1743483445271,0.28576473,609.65,608.17,1.55985541]
[1743483445470,0.30170839,609.64,608.17,1.55985541]
[1743483445872,0.28574009,609.64,608.17,1.55985541]
[1743483446172,0.30170839,609.63,608.17,1.55985541]
[1743483448070,0.30170839,609.62,608.17,1.55985541]
[1743483448273,0.58747664,609.62,608.17,1.55985541]
[1743483448570,0.30170839,609.61,608.17,1.55985541]
[1743483450674,0.28576825,609.62,608.17,1.55985541]
[1743483453883,0.32793336,609.88,608.17,1.55985541]
[1743483454076,0.30175274,609.87,608.17,1.55985541]
[1743483454281,0.32794411,609.86,608.17,1.55985541]
[1743483454481,0.30175274,609.85,608.17,1.55985541]
[1743483454681,0.32795487,609.84,608.17,1.55985541]
[1743483454881,0.30175274,609.83,608.17,1.55985541]
[1743483455084,0.32796562,609.82,608.17,1.55985541]
[1743483455284,0.30175274,609.81,608.17,1.55985541]
[1743483455482,0.62972912,609.8,608.17,1.55985541]
[1743483455682,0.6297345,609.79,608.17,1.55985541]
[1743483455880,0.62973988,609.78,608.17,1.55985541]
[1743483456080,0.30175274,609.77,608.17,1.55985541]
[1743483457078,0.30174965,609.76,608.17,1.55985541]
[1743483457282,0.30174965,609.77,608.17,1.55985541]
[1743483457483,0.58750617,609.76,608.17,1.55985541]
[1743483457683,0.30174965,609.75,608.17,1.55985541]
[1743483458680,0.30174989,609.74,608.17,1.55985541]
[1743483458882,0.30174989,609.75,608.17,1.55985541]
[1743483459082,0.30174989,609.74,608.17,1.55985541]
[1743483459279,0.30174989,609.73,608.17,1.55985541]
[1743483459485,0.30174989,609.72,608.17,1.55985541]
[1743483459683,0.30174989,609.71,608.17,1.55985541]
[1743483459885,0.30174989,609.7,608.17,1.55985541]
[1743483460085,0.30174989,609.77,608.17,1.55985541]
[1743483460285,0.30174989,609.76,608.17,1.55985541]
[1743483460486,0.28575652,609.69,608.17,1.55985541]
[1743483460685,0.30174989,609.68,608.17,1.55985541]
[1743483463086,0.32798714,609.78,608.17,1.55985541]
[1743483463087,0.30174989,609.77,608.17,1.55985541]
[1743483463395,0.28576708,609.67,608.17,1.55985541]
[1743483463691,0.30174989,609.66,608.17,1.55985541]
[1743483463889,0.28575886,609.66,608.17,1.55985541]
[1743483464090,0.30174989,609.65,608.17,1.55985541]
[1743483464992,0.301753,609.64,608.17,1.55985541]
[1743483465287,0.301753,609.63,608.17,1.55985541]
[1743483465492,0.301753,609.62,608.17,1.55985541]
[1743483465692,0.301753,609.61,608.17,1.55985541]
[1743483465887,0.301753,609.6,608.17,1.55985541]
[1743483466090,0.301753,609.77,608.17,1.55985541]
[1743483466291,0.2857706,609.6,608.17,1.55985541]
[1743483466491,0.30175274,609.59,608.17,1.55985541]
[1743483466991,0.58753038,609.58,608.17,1.55985541]
[1743483467188,0.30175274,609.57,608.17,1.55985541]
[1743483469593,0.30175151,609.56,608.17,1.55985541]
[1743483469789,0.30175151,609.57,608.17,1.55985541]
[1743483469995,0.30175151,609.56,608.17,1.55985541]
[1743483470295,0.30175151,609.55,608.17,1.55985541]
[1743483470489,0.30175151,609.57,608.17,1.55985541]
[1743483470693,0.30175151,609.56,608.17,1.55985541]
[1743483470890,0.30175151,609.57,608.17,1.55985541]
[1743483471095,0.30175151,609.56,608.17,1.55985541]
[1743483471295,0.30175265,609.55,608.17,1.55985541]
[1743483471495,0.30175265,609.54,608.17,1.55985541]
[1743483471697,0.30175265,609.57,608.17,1.55985541]
[1743483471994,0.30175265,609.56,608.17,1.55985541]
[1743483472198,0.30175265,609.55,608.17,1.55985541]
[1743483472691,0.28577998,609.56,608.17,1.55985541]
[1743483472898,0.30175183,609.55,608.17,1.55985541]
[1743483475100,2.50058421,609.69,608.17,1.55985541]
[1743483475399,0.28575886,609.54,608.17,1.55985541]
[1743483475596,0.30175183,609.53,608.17,1.55985541]
[1743483476000,0.28578468,609.52,608.17,1.55985541]
[1743483476200,0.30175183,609.51,608.17,1.55985541]
[1743483477501,0.30175087,609.5,608.17,1.55985541]
[1743483477703,0.30175087,609.49,608.17,1.55985541]
[1743483478004,2.50058421,609.67,608.17,1.55985541]
[1743483478197,0.28578702,609.48,608.17,1.55985541]
[1743483478607,2.50058421,609.67,608.17,1.55985541]
[1743483478805,0.28576942,609.47,608.17,1.55985541]
[1743483479206,2.50058421,609.67,608.17,1.55985541]
[1743483479402,0.28576942,609.46,608.17,1.55985541]
[1743483479806,0.32798714,609.78,608.17,1.55985541]
[1743483480005,0.28575652,609.45,608.17,1.55985541]
[1743483480406,0.32798714,609.78,608.17,1.55985541]
[1743483480608,0.28575652,609.44,608.17,1.55985541]
[1743483481003,0.32798714,609.78,608.17,1.55985541]
[1743483481206,0.30174959,609.77,608.17,1.55985541]
[1743483481404,0.28575652,609.43,608.17,1.55985541]
[1743483481610,0.32798714,609.78,608.17,1.55985541]
[1743483481806,0.28575769,609.42,608.17,1.55985541]
[1743483482210,0.32798714,609.78,608.17,1.55985541]
[1743483482410,0.28575652,609.41,608.17,1.55985541]
[1743483482708,0.32798714,609.78,608.17,1.55985541]
[1743483482908,0.30174906,609.77,608.17,1.55985541]
[1743483483105,0.28575769,609.4,608.17,1.55985541]
[1743483483305,0.32798714,609.78,608.17,1.55985541]
[1743483483611,0.28575769,609.39,608.17,1.55985541]
[1743483484108,0.32798714,609.78,608.17,1.55985541]
[1743483484308,0.28575652,609.38,608.17,1.55985541]
[1743483484511,0.32798714,609.78,608.17,1.55985541]
[1743483484708,0.30174919,609.77,608.17,1.55985541]
[1743483484909,0.28575769,609.37,608.17,1.55985541]
[1743483485108,0.32798714,609.78,608.17,1.55985541]
[1743483485306,0.30174945,609.77,608.17,1.55985541]
[1743483485508,0.28575886,609.36,608.17,1.55985541]
[1743483485711,0.32798714,609.78,608.17,1.55985541]
[1743483485906,0.30174934,609.77,608.17,1.55985541]
[1743483486104,0.28575769,609.35,608.17,1.55985541]
[1743483486509,0.32798714,609.78,608.17,1.55985541]
[1743483486712,0.30174932,609.77,608.17,1.55985541]
[1743483486905,0.28575652,609.34,608.17,1.55985541]
[1743483487205,0.32798714,609.78,608.17,1.55985541]
[1743483487411,0.28575769,609.33,608.17,1.55985541]
[1743483487710,0.32798714,609.78,608.17,1.55985541]
[1743483487913,0.30175209,609.77,608.17,1.55985541]
[1743483488113,0.28575769,609.32,608.17,1.55985541]
[1743483488411,0.32798714,609.78,608.17,1.55985541]
[1743483488612,0.28576238,609.31,608.17,1.55985541]
[1743483489006,0.32798714,609.78,608.17,1.55985541]
[1743483489207,0.28576121,609.3,608.17,1.55985541]
[1743483489507,0.32798714,609.78,608.17,1.55985541]
[1743483489705,0.30175192,609.77,608.17,1.55985541]
[1743483490013,0.28576238,609.29,608.17,1.55985541]
[1743483490205,0.32798714,609.78,608.17,1.55985541]
[1743483490406,0.28576238,609.28,608.17,1.55985541]
[1743483490809,0.32798714,609.78,608.17,1.55985541]
[1743483491010,0.28576121,609.27,608.17,1.55985541]
[1743483491406,0.32798714,609.78,608.17,1.55985541]
[1743483491610,0.28576121,609.26,608.17,1.55985541]
[1743483492010,0.32798714,609.78,608.17,1.55985541]
[1743483492210,0.28576121,609.25,608.17,1.55985541]
[1743483492613,0.32798714,609.78,608.17,1.55985541]
[1743483492914,0.28576121,609.24,608.17,1.55985541]
[1743483493115,0.32798714,609.78,608.17,1.55985541]
[1743483493314,0.30174703,609.77,608.17,1.55985541]
[1743483493510,0.28576238,609.23,608.17,1.55985541]
[1743483493814,0.32798714,609.78,608.17,1.55985541]
[1743483494014,0.28576356,609.22,608.17,1.55985541]
[1743483494410,0.32798714,609.78,608.17,1.55985541]
[1743483494615,0.28576121,609.21,608.17,1.55985541]
[1743483495009,0.32798714,609.78,608.17,1.55985541]
[1743483495209,0.28576121,609.2,608.17,1.55985541]
[1743483495613,0.32798714,609.78,608.17,1.55985541]
[1743483495811,0.28576121,609.19,608.17,1.55985541]
[1743483496217,0.32798714,609.78,608.17,1.55985541]
[1743483496417,0.28576238,609.18,608.17,1.55985541]
[1743483496917,0.32798714,609.78,608.17,1.55985541]
[1743483497118,0.28576121,609.17,608.17,1.55985541]
[1743483497417,0.32798714,609.78,608.17,1.55985541]
[1743483497611,0.30175166,609.77,608.17,1.55985541]
[1743483497810,0.28576238,609.16,608.17,1.55985541]
[1743483498010,0.32798714,609.78,608.17,1.55985541]
[1743483498212,0.30175166,609.77,608.17,1.55985541]
[1743483498412,0.28576238,609.15,608.17,1.55985541]
[1743483498612,0.32798714,609.78,608.17,1.55985541]
[1743483498816,0.3017517,609.77,608.17,1.55985541]
[1743483499018,0.3017517,609.76,608.17,1.55985541]
[1743483502123,0.3017517,609.77,608.17,1.55985541]
[1743483502325,0.28576238,609.75,608.17,1.55985541]
[1743483502623,0.3017517,609.74,608.17,1.55985541]
[1743483503725,0.30175036,609.73,608.17,1.55985541]
[1743483503920,0.30175036,609.72,608.17,1.55985541]
[1743483504124,0.30175036,609.71,608.17,1.55985541]
[1743483504327,0.30175036,609.74,608.17,1.55985541]
[1743483504522,0.30175036,609.73,608.17,1.55985541]
[1743483504724,0.30175036,609.72,608.17,1.55985541]
[1743483504920,0.30175036,609.74,608.17,1.55985541]
[1743483505120,0.30175036,609.73,608.17,1.55985541]
[1743483505319,0.30174432,609.72,608.17,1.55985541]
[1743483505625,0.30174432,609.71,608.17,1.55985541]
[1743483505924,0.30174432,609.7,608.17,1.55985541]
[1743483506125,0.30174432,609.72,608.17,1.55985541]
[1743483506328,0.30174432,609.71,608.17,1.55985541]
[1743483506629,0.30174432,609.7,608.17,1.55985541]
[1743483506823,0.28576121,609.73,608.17,1.55985541]
[1743483506824,0.30174432,609.72,608.17,1.55985541]
[1743483508223,0.32798714,609.78,608.17,1.55985541]
[1743483508224,0.5875114,609.71,608.17,1.55985541]
[1743483508529,0.30174432,609.7,608.17,1.55985541]
[1743483510127,0.30174527,609.69,608.17,1.55985541]
[1743483510330,0.30174527,609.68,608.17,1.55985541]
[1743483510526,0.30174527,609.7,608.17,1.55985541]
[1743483510727,0.30174527,609.69,608.17,1.55985541]
[1743483511023,0.30174527,609.68,608.17,1.55985541]
[1743483511227,0.30174527,609.67,608.17,1.55985541]
[1743483511428,0.28576942,609.68,608.17,1.55985541]
[1743483511621,0.30174527,609.66,608.17,1.55985541]
[1743483511826,0.30174527,609.65,608.17,1.55985541]
[1743483512027,0.30174527,609.67,608.17,1.55985541]
[1743483512228,0.28576942,609.68,608.17,1.55985541]
[1743483512229,0.30174527,609.66,608.17,1.55985541]
[1743483512431,0.30174527,609.67,608.17,1.55985541]
[1743483512631,0.30174527,609.66,608.17,1.55985541]
[1743483512831,0.30174527,609.65,608.17,1.55985541]
[1743483513130,0.30174527,609.64,608.17,1.55985541]
[1743483513331,0.30174528,609.63,608.17,1.55985541]
[1743483513530,0.30174528,609.62,608.17,1.55985541]
[1743483513732,0.30174528,609.61,608.17,1.55985541]
[1743483513934,0.30174528,609.6,608.17,1.55985541]
[1743483514232,0.30174528,609.59,608.17,1.55985541]
[1743483514426,0.30174528,609.58,608.17,1.55985541]
[1743483514628,0.30174528,609.57,608.17,1.55985541]
[1743483514829,0.3017456,609.56,608.17,1.55985541]
[1743483515133,0.3017456,609.55,608.17,1.55985541]
[1743483515331,0.3017456,609.54,608.17,1.55985541]
[1743483515533,0.3017456,609.53,608.17,1.55985541]
[1743483515829,0.3017456,609.52,608.17,1.55985541]
[1743483516029,0.3017456,609.59,608.17,1.55985541]
[1743483516232,0.3017456,609.58,608.17,1.55985541]
[1743483516428,0.3017456,609.59,608.17,1.55985541]
[1743483516627,0.3017456,609.58,608.17,1.55985541]
[1743483516833,0.3017456,609.57,608.17,1.55985541]
[1743483517028,0.3017456,609.56,608.17,1.55985541]
[1743483517229,0.3017456,609.55,608.17,1.55985541]
[1743483517428,0.3017456,609.56,608.17,1.55985541]
[1743483517634,0.3017456,609.55,608.17,1.55985541]
[1743483517833,0.3017456,609.56,608.17,1.55985541]
[1743483518033,0.3017456,609.55,608.17,1.55985541]
[1743483518236,0.3017456,609.54,608.17,1.55985541]
[1743483518436,0.3017456,609.56,608.17,1.55985541]
[1743483518735,0.3017456,609.55,608.17,1.55985541]
[1743483518935,0.3017456,609.54,608.17,1.55985541]
[1743483519129,0.3017456,609.56,608.17,1.55985541]
[1743483519333,0.28577294,609.57,608.17,1.55985541]
[1743483519635,0.30172794,609.56,608.17,1.55985541]
[1743483520229,2.82857135,609.78,608.17,1.55985541]
[1743483520539,0.28575065,609.55,608.17,1.55985541]
[1743483520728,2.82857135,609.78,608.17,1.55985541]
[1743483520931,0.30168621,609.77,608.17,1.55985541]
[1743483521133,0.28572719,609.54,608.17,1.55985541]
[1743483521330,0.32798714,609.78,608.17,1.55985541]
[1743483521533,0.30168281,609.77,608.17,1.55985541]
[1743483521733,0.28572367,609.53,608.17,1.55985541]
[1743483521931,0.32798714,609.78,608.17,1.55985541]
[1743483522239,0.28572484,609.52,608.17,1.55985541]
[1743483522632,0.32798714,609.78,608.17,1.55985541]
[1743483522834,0.28572367,609.51,608.17,1.55985541]
[1743483523132,0.32798714,609.78,608.17,1.55985541]
[1743483523336,0.30167507,609.77,608.17,1.55985541]
[1743483523538,0.28572367,609.5,608.17,1.55985541]
[1743483523735,0.32798714,609.78,608.17,1.55985541]
[1743483523938,0.30167338,609.77,608.17,1.55985541]
[1743483524139,0.28572367,609.49,608.17,1.55985541]
[1743483524334,0.32798714,609.78,608.17,1.55985541]
[1743483524535,0.3016733,609.77,608.17,1.55985541]
[1743483524734,0.2857225,609.48,608.17,1.55985541]
[1743483524938,0.32798714,609.78,608.17,1.55985541]
[1743483525234,0.30167688,609.77,608.17,1.55985541]
[1743483525440,0.28572484,609.47,608.17,1.55985541]
[1743483525634,0.32798714,609.78,608.17,1.55985541]
[1743483525837,0.30167501,609.77,608.17,1.55985541]
[1743483526136,0.2857178,609.46,608.17,1.55985541]
[1743483526339,0.32798714,609.78,608.17,1.55985541]
[1743483526541,0.30167509,609.77,608.17,1.55985541]
[1743483526735,0.2857178,609.45,608.17,1.55985541]
[1743483526936,0.32798714,609.78,608.17,1.55985541]
[1743483527138,0.30167498,609.77,608.17,1.55985541]
[1743483527339,0.2857178,609.44,608.17,1.55985541]
[1743483527640,0.32798714,609.78,608.17,1.55985541]
[1743483527939,0.2857178,609.43,608.17,1.55985541]
[1743483528240,0.32798714,609.78,608.17,1.55985541]
[1743483528439,0.2857178,609.42,608.17,1.55985541]
[1743483528835,0.32798714,609.78,608.17,1.55985541]
[1743483529038,0.2857178,609.41,608.17,1.55985541]
[1743483529442,0.32798714,609.78,608.17,1.55985541]
[1743483529640,0.2857178,609.4,608.17,1.55985541]
[1743483530037,0.32798714,609.78,608.17,1.55985541]
[1743483530237,0.2857178,609.39,608.17,1.55985541]
[1743483530440,0.32798714,609.78,608.17,1.55985541]
[1743483530644,0.30166468,609.77,608.17,1.55985541]
[1743483530839,0.2857178,609.38,608.17,1.55985541]
[1743483531045,0.32798714,609.78,608.17,1.55985541]
[1743483531245,0.30168025,609.77,608.17,1.55985541]
[1743483531441,0.2857178,609.37,608.17,1.55985541]
[1743483531746,0.32798714,609.78,608.17,1.55985541]
[1743483531942,0.30168432,609.77,608.17,1.55985541]
[1743483532138,0.32798714,609.78,608.17,1.55985541]
[1743483532341,0.58735125,609.77,608.17,1.55985541]
[1743483532544,0.30168387,609.76,608.17,1.55985541]
[1743483533739,0.28566738,609.77,608.17,1.55985541]
[1743483533942,0.30168227,609.76,608.17,1.55985541]
[1743483534538,0.28566738,609.77,608.17,1.55985541]
[1743483534740,0.30168253,609.76,608.17,1.55985541]
[1743483535139,0.30168253,609.75,608.17,1.55985541]
[1743483535343,0.30168227,609.74,608.17,1.55985541]
[1743483535646,0.30168227,609.73,608.17,1.55985541]
[1743483535848,0.30168227,609.74,608.17,1.55985541]
[1743483536149,0.30168227,609.73,608.17,1.55985541]
[1743483536351,0.30168205,609.72,608.17,1.55985541]
[1743483536549,0.30168205,609.71,608.17,1.55985541]
[1743483536745,0.30168205,609.74,608.17,1.55985541]
[1743483536946,0.30168205,609.73,608.17,1.55985541]
[1743483537148,0.30168205,609.74,608.17,1.55985541]
[1743483537352,0.30168205,609.73,608.17,1.55985541]
[1743483537655,0.30168205,609.72,608.17,1.55985541]
[1743483537847,0.30168205,609.74,608.17,1.55985541]
[1743483538047,0.30168205,609.73,608.17,1.55985541]
[1743483538246,0.30168205,609.77,608.17,1.55985541]
[1743483538547,0.2857225,609.73,608.17,1.55985541]
[1743483538752,0.30167933,609.72,608.17,1.55985541]
[1743483540152,0.2857225,609.73,608.17,1.55985541]
[1743483541048,0.32798714,609.78,608.17,1.55985541]
[1743483541248,0.28571898,609.72,608.17,1.55985541]
[1743483544045,0.32798714,609.78,608.17,1.55985541]
[1743483544248,0.28571898,609.71,608.17,1.55985541]
[1743483547057,0.32798714,609.78,608.17,1.55985541]
[1743483547566,0.28571898,609.7,608.17,1.55985541]
[1743483547762,0.32798714,609.78,608.17,1.55985541]
[1743483547966,0.28571898,609.69,608.17,1.55985541]
[1743483548360,0.32798714,609.78,608.17,1.55985541]
[1743483548559,0.28571898,609.68,608.17,1.55985541]
[1743483548866,0.32798714,609.78,608.17,1.55985541]
[1743483549265,0.28571898,609.67,608.17,1.55985541]
[1743483549468,0.32798714,609.78,608.17,1.55985541]
[1743483549767,0.28571898,609.66,608.17,1.55985541]
[1743483550167,0.32798714,609.78,608.17,1.55985541]
[1743483550366,0.28571898,609.65,608.17,1.55985541]
[1743483550568,0.32798714,609.78,608.17,1.55985541]
[1743483550965,0.28571898,609.64,608.17,1.55985541]
[1743483551165,0.32798714,609.78,608.17,1.55985541]
[1743483551568,0.28571898,609.63,608.17,1.55985541]
[1743483551867,0.32798714,609.78,608.17,1.55985541]
[1743483552067,0.28571898,609.62,608.17,1.55985541]
[1743483552368,0.32798714,609.78,608.17,1.55985541]
[1743483552869,0.28571898,609.61,608.17,1.55985541]
[1743483553063,0.32798714,609.78,608.17,1.55985541]
[1743483553267,0.28564862,609.77,608.17,1.55985541]
[1743483554171,0.30168109,609.76,608.17,1.55985541]
[1743483556267,0.58740124,609.75,608.17,1.55985541]
[1743483556571,0.30168109,609.74,608.17,1.55985541]
[1743483557170,0.30167941,609.73,608.17,1.55985541]
[1743483557365,0.30167941,609.74,608.17,1.55985541]
[1743483557573,0.30167941,609.73,608.17,1.55985541]
[1743483557769,0.30167941,609.72,608.17,1.55985541]
[1743483557969,0.30167941,609.71,608.17,1.55985541]
[1743483558174,0.30167941,609.7,608.17,1.55985541]
[1743483558470,0.30167941,609.69,608.17,1.55985541]
[1743483558666,0.30167941,609.74,608.17,1.55985541]
[1743483559375,0.30167941,609.73,608.17,1.55985541]
[1743483559575,0.2857225,609.73,608.17,1.55985541]
[1743483559870,0.30167941,609.72,608.17,1.55985541]
[1743483562278,0.58740425,609.71,608.17,1.55985541]
[1743483562575,0.30166619,609.7,608.17,1.55985541]
[1743483565075,0.30166474,609.69,608.17,1.55985541]
[1743483565279,0.30166474,609.68,608.17,1.55985541]
[1743483565481,0.28571898,609.68,608.17,1.55985541]
[1743483565676,0.30166474,609.67,608.17,1.55985541]
[1743483566676,0.30166886,609.66,608.17,1.55985541]
[1743483566877,0.28571898,609.68,608.17,1.55985541]
[1743483567182,0.30166886,609.67,608.17,1.55985541]
[1743483568284,0.30166973,609.66,608.17,1.55985541]
[1743483568485,0.28571898,609.66,608.17,1.55985541]
[1743483570988,0.32798714,609.78,608.17,1.55985541]
[1743483571185,0.30166749,609.77,608.17,1.55985541]
[1743483571386,0.28571546,609.65,608.17,1.55985541]
[1743483571585,0.32798714,609.78,608.17,1.55985541]
[1743483571786,0.30164829,609.77,608.17,1.55985541]
[1743483571984,0.28571194,609.64,608.17,1.55985541]
[1743483572184,0.32798714,609.78,608.17,1.55985541]
[1743483572487,0.28571311,609.63,608.17,1.55985541]
[1743483572883,0.32798714,609.78,608.17,1.55985541]
[1743483573088,0.28571194,609.62,608.17,1.55985541]
[1743483573588,0.32798714,609.78,608.17,1.55985541]
[1743483573788,0.28570256,609.61,608.17,1.55985541]
[1743483573991,0.32798714,609.78,608.17,1.55985541]
[1743483574392,0.28570256,609.6,608.17,1.55985541]
[1743483574585,0.32798714,609.78,608.17,1.55985541]
[1743483574992,0.28570256,609.59,608.17,1.55985541]
[1743483575286,0.32798714,609.78,608.17,1.55985541]
[1743483575489,0.28570256,609.58,608.17,1.55985541]
[1743483575984,0.32798714,609.78,608.17,1.55985541]
[1743483576191,0.28570256,609.57,608.17,1.55985541]
[1743483576484,0.32798714,609.78,608.17,1.55985541]
[1743483576690,0.28570256,609.56,608.17,1.55985541]
[1743483577092,0.32798714,609.78,608.17,1.55985541]
[1743483577493,0.28570256,609.55,608.17,1.55985541]
[1743483577691,0.32798714,609.78,608.17,1.55985541]
[1743483577886,0.28570256,609.54,608.17,1.55985541]
[1743483578388,0.32798714,609.78,608.17,1.55985541]
[1743483578593,0.28570256,609.53,608.17,1.55985541]
[1743483578992,0.32798714,609.78,608.17,1.55985541]
[1743483579193,0.28569787,609.52,608.17,1.55985541]
[1743483579594,0.32798714,609.78,608.17,1.55985541]
[1743483579889,0.28569787,609.51,608.17,1.55985541]
[1743483580092,0.32798714,609.78,608.17,1.55985541]
[1743483580491,0.28569787,609.5,608.17,1.55985541]
[1743483580691,0.32798714,609.78,608.17,1.55985541]
[1743483581095,0.28569787,609.49,608.17,1.55985541]
[1743483581296,0.32798714,609.78,608.17,1.55985541]
[1743483581693,0.28569787,609.48,608.17,1.55985541]
[1743483581992,0.32798714,609.78,608.17,1.55985541]
[1743483582199,0.28569787,609.47,608.17,1.55985541]
[1743483582597,0.32798714,609.78,608.17,1.55985541]
[1743483582793,2.50058421,610.29,608.17,1.55985541]
[1743483582994,0.28568379,609.46,608.17,1.55985541]
[1743483583301,0.32771842,610.28,608.17,1.55985541]
[1743483583498,0.28562283,609.45,608.17,1.55985541]
[1743483583699,0.32771842,610.28,608.17,1.55985541]
[1743483583899,0.30157317,610.27,608.17,1.55985541]
[1743483584201,0.285624,609.44,608.17,1.55985541]
[1743483584400,0.32772916,610.26,608.17,1.55985541]
[1743483584597,0.285624,609.43,608.17,1.55985541]
[1743483585001,0.32772916,610.26,608.17,1.55985541]
[1743483585204,0.285624,609.42,608.17,1.55985541]
[1743483585602,0.32772916,610.26,608.17,1.55985541]
[1743483585802,0.285624,609.41,608.17,1.55985541]
[1743483586200,0.32772916,610.26,608.17,1.55985541]
[1743483586397,0.30157192,610.25,608.17,1.55985541]
[1743483586597,0.28562517,609.4,608.17,1.55985541]
[1743483586796,0.3277399,610.24,608.17,1.55985541]
[1743483586998,0.30157192,610.23,608.17,1.55985541]
[1743483587197,0.28562752,609.39,608.17,1.55985541]
[1743483587402,0.32775064,610.22,608.17,1.55985541]
[1743483587602,0.30157192,610.21,608.17,1.55985541]
[1743483587803,0.28562986,609.39,608.17,1.55985541]
[1743483588003,0.32776138,610.2,608.17,1.55985541]
[1743483588201,0.30157475,610.19,608.17,1.55985541]
[1743483588405,0.28563221,609.39,608.17,1.55985541]
[1743483588606,0.32777213,610.18,608.17,1.55985541]
[1743483588806,0.30157171,610.17,608.17,1.55985541]
[1743483589000,0.62935431,610.16,608.17,1.55985541]
[1743483589306,0.62935968,610.15,608.17,1.55985541]
[1743483589506,0.62936506,610.14,608.17,1.55985541]
[1743483589801,0.62937043,610.13,608.17,1.55985541]
[1743483590009,0.30157144,610.12,608.17,1.55985541]
[1743483590202,0.6293758,610.12,608.17,1.55985541]
[1743483590403,0.30157144,610.11,608.17,1.55985541]
[1743483592106,0.32780436,610.12,608.17,1.55985541]
[1743483592107,0.301573,610.1,608.17,1.55985541]
[1743483592310,0.301573,610.09,608.17,1.55985541]
[1743483592514,0.301573,610.08,608.17,1.55985541]
[1743483592812,0.301573,610.07,608.17,1.55985541]
[1743483593013,0.301573,610.09,608.17,1.55985541]
[1743483593313,0.301573,610.08,608.17,1.55985541]
[1743483593512,0.301573,610.07,608.17,1.55985541]
[1743483593711,0.3015688,610.06,608.17,1.55985541]
[1743483593912,0.3015688,610.05,608.17,1.55985541]
[1743483594113,0.3015688,610.09,608.17,1.55985541]
[1743483594314,0.3015688,610.08,608.17,1.55985541]
[1743483594513,0.3015688,610.09,608.17,1.55985541]
[1743483595309,0.3015688,610.11,608.17,1.55985541]
[1743483595513,0.28564159,610.08,608.17,1.55985541]
[1743483595717,0.3015688,610.07,608.17,1.55985541]
[1743483598213,0.28564627,610.06,608.17,1.55985541]
[1743483598419,0.3015688,610.05,608.17,1.55985541]
[1743483599519,0.28564627,610.06,608.17,1.55985541]
[1743483600221,0.30156854,610.05,608.17,1.55985541]
[1743483600522,0.28564627,610.06,608.17,1.55985541]
[1743483600717,0.30157076,610.05,608.17,1.55985541]
[1743483601316,0.28564862,610.04,608.17,1.55985541]
[1743483601817,0.30157076,610.03,608.17,1.55985541]
[1743483602018,0.30157094,610.02,608.17,1.55985541]
[1743483602219,0.30157094,610.03,608.17,1.55985541]
[1743483602419,0.30157094,610.02,608.17,1.55985541]
[1743483602621,0.30157094,610.01,608.17,1.55985541]
[1743483602817,0.30157094,610.0,608.17,1.55985541]
[1743483603023,0.30157094,609.99,608.17,1.55985541]
[1743483603223,0.30157094,610.03,608.17,1.55985541]
[1743483603423,0.30157094,610.02,608.17,1.55985541]
[1743483603620,0.30157094,610.01,608.17,1.55985541]
[1743483603822,0.30157094,610.0,608.17,1.55985541]
[1743483604025,0.30157094,609.99,608.17,1.55985541]
[1743483604224,0.30157094,610.11,608.17,1.55985541]
[1743483604620,0.28564159,609.98,608.17,1.55985541]
[1743483604827,0.30157094,610.11,608.17,1.55985541]
[1743483605027,0.58721253,610.1,608.17,1.55985541]